fUSD/lending_fUSD_20260322
["ID","MTS","AMOUNT","RATE_DAILY","PERIOD"]
[408742166,1774185043539,-10174.2414738,0.00022275,2]
[408742167,1774185043549,-191.315296,0.00022364,14]
[408742168,1774185043558,-4293.95604048,0.00022375,2]
[408742169,1774185043567,-901.36,0.000224,7]
[408742170,1774185043577,-158.25,0.00022957,2]
[408742171,1774185043587,-391.342394,0.0002296,14]
[408742172,1774185043597,-2878.81,0.00022984,2]
[408742173,1774185043607,-450.0,0.00023,2]
[408742174,1774185043616,-58648.31,0.00023,7]
[408742175,1774185043625,-160.0,0.00023,7]
[408742176,1774185043635,-160.0,0.00023,7]
[408742177,1774185043644,-573.0,0.00023,2]
[408742178,1774185043653,-12594.32711413,0.00023009,2]
[408742179,1774185043662,-500.0,0.00023167,10]
[408742180,1774185043678,-210.48945359,0.00023169,7]
[408742181,1774185043691,-396.630378,0.00023226,14]
[408742182,1774185043701,-152.2342,0.000233,2]
[408742183,1774185043710,-196.500827,0.00023382,14]
[408742184,1774185043720,-1625.51,0.000235,7]
[408742185,1774185043730,-1837.12,0.000235,7]
[408742186,1774185043740,-10174.2414738,0.00023553,2]
[408742187,1774185043753,-536.39527,0.00023691,14]
[408742188,1774185043763,-489.389111,0.00023691,14]
[408742189,1774185043772,-160.0,0.000237,7]
[408742190,1774185043781,-2070.05,0.000237,7]
[408742192,1774185043793,-160.0,0.000237,7]
[408742194,1774185043802,-1205.46,0.000237,7]
[408742195,1774185043811,-273.36,0.00023815,2]
[408742197,1774185043821,-3162.0,0.00023977,2]
[408742198,1774185043830,-979.16666667,0.00024,7]
[408742199,1774185043839,-573.0,0.00024,2]
[408742200,1774185043849,-236.737905,0.00024077,14]
[408742201,1774185043858,-500.0,0.00024083,10]
[408742202,1774185043867,-901.736271,0.00024339,14]
[408742203,1774185043876,-253.66862,0.00024339,14]
[408742204,1774185043886,-200.564951,0.00024346,14]
[408742205,1774185043895,-442.35727468,0.0002463,2]
[408742206,1774185043905,-12594.32711413,0.0002463,2]
[408742207,1774185043914,-150.0,0.00024658,2]
[408742208,1774185043923,-6489.8,0.00024819,2]
[408742209,1774185043932,-822.9,0.00024819,2]
[408742210,1774185043942,-1488.63,0.00024819,2]
[408742211,1774185043951,-3560.32,0.00024819,2]
[408742212,1774185043960,-2649.38,0.00024819,2]
[408742213,1774185043970,-10174.2414738,0.00024832,2]
[408742214,1774185043979,-277.15195125,0.00024899,10]
[408742215,1774185043989,-666.0,0.00024899,2]
[408742216,1774185043998,-545146.603764,0.000249,2]
[408742217,1774185044007,-500.0,0.00024932,2]
[408742218,1774185044016,-500.0,0.00024932,2]
[408742219,1774185044025,-500.0,0.00024932,2]
[408742220,1774185044039,-500.0,0.00025,2]
[408742221,1774185044048,-2180.76,0.00025,2]
[408742222,1774185044058,-573.0,0.00025,2]
[408742223,1774185044068,-500.0,0.00025,11]
[408742224,1774185044078,-150.71,0.00025178,2]
[408742225,1774185044088,-666.0,0.00025399,2]
[408742226,1774185044097,-58648.31,0.000254,7]
[408742227,1774185044107,-160.0,0.000254,7]
[408742228,1774185044116,-1024.0,0.00025558,10]
[408742229,1774185044125,-1060.0,0.00025558,10]
[408742230,1774185044135,-150.0,0.00025627,90]
[408742231,1774185044145,-208.60060824,0.00025627,90]
[408742232,1774185044154,-150.0,0.0002589,2]
[408742233,1774185044164,-1205.46,0.000259,7]
[408742234,1774185044173,-500.0,0.00025917,12]
[408742236,1774185044183,-160.0,0.00026,7]
[408742238,1774185044192,-979.16666667,0.00026,7]
[408742239,1774185044202,-573.0,0.00026,2]
[408742240,1774185044212,-726.35,0.00026197,30]
[408742241,1774185044221,-1484.31656128,0.00026233,2]
[408742242,1774185044231,-12594.32711413,0.00026251,2]
[408742243,1774185044241,-4427.0,0.00026307,2]
[408742244,1774185044251,-165.780048,0.00026342,14]
[408742245,1774185044261,-152.9863,0.000264,2]
[408742246,1774185044271,-4635.57,0.0002643,2]
[408742247,1774185044281,-608.05,0.0002643,2]
[408742248,1774185044290,-1063.31,0.0002643,2]
[408742249,1774185044300,-2543.08,0.0002643,2]
[408742250,1774185044310,-1892.41,0.0002643,2]
[408742251,1774185044320,-901.36,0.000265,7]
[408742252,1774185044851,-1625.51,0.000266,7]
[408742253,1774185044861,-1837.12,0.000266,7]
[408742254,1774185044870,-500.0,0.00026833,13]
[408742255,1774185044881,-4293.95604048,0.000269,2]
[408742256,1774185044890,-800.0,0.00026986,120]
[408742257,1774185044900,-800.0,0.00026986,120]
[408742258,1774185044910,-2536.843365,0.00027,2]
[408742259,1774185044919,-160.0,0.00027,3]
[408742260,1774185044929,-160.0,0.00027,3]
[408742261,1774185044938,-574.8,0.00027,2]
[408742262,1774185044948,-181.11,0.0002705,2]
[408742263,1774185044958,-150.0,0.00027185,2]
[408742264,1774185044967,-2070.05,0.000272,7]
[408742265,1774185044976,-323.65498,0.00027317,14]
[408742266,1774185044986,-857.01908517,0.0002737,2]
[408742267,1774185044996,-407.4851623,0.0002737,2]
[408742268,1774185045009,-600.0,0.00027397,120]
[408742269,1774185045019,-300.0,0.00027397,2]
[408742270,1774185045029,-214.31160357,0.00027397,2]
[408742271,1774185045039,-28143.7,0.00027397,10]
[408742272,1774185045049,-23453.09,0.00027397,10]
[408742273,1774185045058,-500.0,0.00027397,5]
[408742274,1774185045068,-150.0,0.00027397,5]
[408742275,1774185045078,-160.93366533,0.00027397,5]
[408742276,1774185045087,-1550.0,0.00027552,2]
[408742277,1774185045097,-1550.0,0.00027552,2]
[408742278,1774185045106,-1550.0,0.00027552,2]
[408742279,1774185045116,-1550.0,0.00027552,2]
[408742280,1774185045126,-1550.0,0.00027552,2]
[408742281,1774185045138,-1550.0,0.00027552,2]
[408742282,1774185045148,-1550.0,0.00027552,2]
[408742283,1774185045158,-1550.0,0.00027552,2]
[408742284,1774185045173,-1550.0,0.00027552,2]
[408742285,1774185045183,-500.0,0.0002775,14]
[408742286,1774185045194,-277.83720946,0.00027788,2]
[408742287,1774185045207,-12594.32711413,0.00027872,2]
[408742288,1774185045217,-250.0,0.00027945,5]
[408742289,1774185045226,-619.22,0.00027972,2]
[408742290,1774185045236,-2476.89,0.00027972,2]
[408742291,1774185045245,-275.42,0.00027972,2]
[408742292,1774185045255,-862.49,0.00027972,2]
[408742293,1774185045264,-58648.31,0.00028,7]
[408742294,1774185045275,-979.16666667,0.00028,10]
[408742295,1774185045285,-182.24,0.00028149,2]
[408742296,1774185045294,-308.47240642,0.00028173,2]
[408742297,1774185045304,-150.71,0.00028178,2]
[408742298,1774185045313,-1205.46,0.000282,7]
[408742299,1774185045323,-246.820544,0.00028235,14]
[408742300,1774185045333,-350.0,0.00028493,5]
[408742301,1774185045342,-150.0,0.00028544,2]
[408742302,1774185045353,-182.24,0.00028548,2]
[408742303,1774185045363,-2180.76,0.000286,2]
[408742304,1774185045373,-500.0,0.00028667,14]
[408742305,1774185045385,-286.0,0.00028698,2]
[408742306,1774185045394,-497.88707534,0.00028767,2]
[408742307,1774185045404,-500.0,0.00028767,120]
[408742308,1774185045414,-500.0,0.00028767,120]
[408742309,1774185045423,-500.0,0.00028767,120]
[408742310,1774185045433,-500.0,0.00028767,120]
[408742311,1774185045443,-500.0,0.00028767,120]
[408742312,1774185045452,-500.0,0.00028767,120]
[408742313,1774185045461,-191.26170008,0.00028767,120]
[408742314,1774185045471,-501.79723944,0.00028767,5]
[408742315,1774185045481,-2139.0,0.00028864,2]
[408742316,1774185045490,-500.0,0.00028877,2]
[408742317,1774185045500,-347.0,0.00028946,2]
[408742318,1774185045510,-182.24,0.00028947,2]
[408742319,1774185045519,-450.0,0.00029041,5]
[408742320,1774185045529,-1444.0,0.00029041,120]
[408742321,1774185045538,-191.12,0.0002905,120]
[408742322,1774185045548,-160.0,0.0002905,120]
[408742323,1774185045557,-195.22,0.0002905,120]
[408742324,1774185045567,-150.0,0.0002905,120]
[408742325,1774185045577,-160.0,0.0002905,120]
[408742326,1774185045586,-160.0,0.0002905,120]
[408742327,1774185045595,-901.36,0.000291,7]
[408742328,1774185045605,-733.97,0.00029147,120]
[408742329,1774185045614,-2000.0,0.000293,2]
[408742330,1774185045624,-6070.46,0.00029346,2]
[408742331,1774185045635,-733.97,0.00029421,120]
[408742332,1774185045644,-181.59,0.00029535,60]
[408742333,1774185045653,-181.59,0.00029535,60]
[408742334,1774185045663,-181.58,0.00029535,60]
[408742335,1774185045673,-500.0,0.00029583,15]
[408742336,1774185045683,-550.0,0.00029589,5]
[408742337,1774185045693,-153.7422,0.000296,2]
[408742338,1774185045703,-733.99,0.00029695,120]
[408742339,1774185045713,-1050.0,0.00029783,2]
[408742340,1774185045722,-1050.0,0.00029783,2]
[408742341,1774185045732,-1050.0,0.00029783,2]
[408742342,1774185045743,-1050.0,0.00029783,2]
[408742343,1774185045755,-1050.0,0.00029783,2]
[408742344,1774185045764,-1050.0,0.00029783,2]
[408742345,1774185045774,-1050.0,0.00029783,2]
[408742346,1774185045784,-1050.0,0.00029783,2]
[408742347,1774185045795,-1050.0,0.00029783,2]
[408742348,1774185045804,-860.0,0.00029783,2]
[408742349,1774185045815,-3714.26,0.00029887,2]
[408742350,1774185045825,-901.36,0.000299,7]
[408742351,1774185045835,-150.0,0.00029971,2]
[408742352,1774185045844,-362.72905046,0.0003,30]
[408742353,1774185045854,-246.0975821,0.0003,7]
[408742354,1774185045864,-246.0975821,0.0003,7]
[408742355,1774185045874,-421.87618475,0.0003,7]
[408742356,1774185045884,-362.72905046,0.0003,30]
[408742357,1774185045894,-245.9876349,0.0003,7]
[408742358,1774185045904,-245.9876349,0.0003,7]
[408742359,1774185045913,-1625.51,0.0003,7]
[408742360,1774185045923,-1837.12,0.0003,7]
[408742361,1774185045932,-160.0,0.0003,120]
[408742362,1774185045942,-181.84,0.00030009,7]
[408742363,1774185045951,-1262.0,0.0003005,5]
[408742364,1774185045960,-347.452349,0.000301,14]
[408742365,1774185045970,-459.35683227,0.00030136,120]
[408742366,1774185045980,-342.45063094,0.00030137,5]
[408742367,1774185045989,-250.0,0.00030137,2]
[408742370,1774185045998,-250.0,0.00030137,2]
[408742371,1774185046007,-250.0,0.00030137,2]
[408742372,1774185046016,-250.0,0.00030137,2]
[408742373,1774185046025,-250.0,0.00030137,2]
[408742374,1774185046034,-250.0,0.00030137,2]
[408742375,1774185046043,-250.0,0.00030137,2]
[408742376,1774185046052,-250.0,0.00030137,2]
[408742377,1774185046061,-250.0,0.00030137,2]
[408742378,1774185046070,-251.17552973,0.00030137,2]
[408742379,1774185046080,-1205.46,0.000302,30]
[408742380,1774185046089,-200.0,0.00030225,2]
[408742381,1774185046099,-200.0,0.00030225,2]
[408742382,1774185046108,-200.0,0.00030225,2]
[408742383,1774185046118,-200.0,0.00030225,2]
[408742384,1774185046129,-200.0,0.00030225,2]
[408742385,1774185046139,-200.0,0.00030225,2]
[408742386,1774185046149,-200.0,0.00030225,2]
[408742387,1774185046158,-200.0,0.00030225,2]
[408742388,1774185046167,-327.0,0.00030225,2]
[408742389,1774185046177,-579.89459538,0.00030237,2]
[408742390,1774185046186,-726.35,0.00030393,60]
[408742391,1774185046195,-558.79,0.00030411,120]
[408742392,1774185046205,-202.985,0.00030483,30]
[408742393,1774185046214,-500.0,0.000305,16]
[408742394,1774185046223,-901.36,0.000305,7]
[408742395,1774185046233,-933.78,0.00030517,120]
[408742396,1774185046242,-2070.05,0.000306,7]
[408742397,1774185046251,-150.0,0.00030606,120]
[408742398,1774185046261,-305.85705657,0.00030685,2]
[408742399,1774185046271,-58648.31,0.000307,7]
[408742400,1774185046280,-573.0,0.00030706,30]
[408742401,1774185046290,-664.55,0.00030714,2]
[408742402,1774185046299,-933.78,0.00030791,120]
[408742403,1774185046308,-150.0,0.000308,4]
[408742404,1774185046317,-150.0,0.00030829,120]
[408742405,1774185046327,-330.525315,0.00030968,14]
[408742406,1774185046336,-979.16666667,0.00031,120]
[408742407,1774185046346,-170.706749,0.00031,7]
[408742408,1774185046356,-170.706749,0.00031,7]
[408742409,1774185046366,-170.706749,0.00031,7]
[408742410,1774185046376,-170.706749,0.00031,7]
[408742411,1774185046385,-183.87025225,0.00031001,30]
[408742412,1774185046395,-150.0,0.00031001,30]
[408742413,1774185046404,-202.985,0.00031031,30]
[408742414,1774185046414,-933.78,0.00031065,120]
[408742415,1774185046423,-2960.40658792,0.00031117,2]
[408742416,1774185046432,-1574.18400216,0.00031117,2]
[408742417,1774185046442,-150.71,0.00031178,2]
[408742418,1774185046451,-933.78,0.00031339,120]
[408742419,1774185046461,-1484.31656128,0.000314,2]
[408742420,1774185046471,-500.0,0.00031417,17]
[408742421,1774185046481,-4293.95604048,0.00031425,2]
[408742422,1774185046492,-150.0,0.0003147,2]
[408742423,1774185046502,-2180.76,0.000315,2]
[408742424,1774185046511,-202.985,0.00031579,30]
[408742425,1774185046521,-446.996059,0.00031587,14]
[408742426,1774185046530,-271.882839,0.00031587,14]
[408742427,1774185046540,-933.78,0.00031613,120]
[408742428,1774185046549,-619.22,0.00031693,2]
[408742429,1774185046559,-2476.89,0.00031693,2]
[408742430,1774185046569,-862.49,0.00031693,2]
[408742431,1774185046578,-573.0,0.00031706,30]
[408742432,1774185046587,-213.8,0.000318,5]
[408742433,1774185046597,-150.0,0.00031846,7]
[408742434,1774185046606,-933.78,0.00031887,120]
[408742435,1774185046615,-1205.46,0.000319,30]
[408742436,1774185046625,-933.78,0.00032161,120]
[408742437,1774185046637,-150.0,0.00032162,120]
[408742438,1774185046646,-901.36,0.000322,7]
[408742439,1774185046656,-163.45,0.00032211,60]
[408742440,1774185046665,-362.72905046,0.00032222,30]
[408742441,1774185046674,-1625.51,0.000323,7]
[408742442,1774185046684,-1837.12,0.000323,7]
[408742443,1774185046693,-500.0,0.00032333,18]
[408742444,1774185046703,-933.78,0.00032435,120]
[408742445,1774185046713,-500.964595,0.00032452,14]
[408742446,1774185046722,-58648.31,0.000326,7]
[408742447,1774185046731,-209.369272,0.000326,7]
[408742448,1774185046741,-151.0,0.000326,7]
[408742449,1774185046754,-209.369272,0.000326,7]
[408742450,1774185046763,-151.0,0.000326,7]
[408742451,1774185046772,-209.369272,0.000326,7]
[408742452,1774185046782,-209.369272,0.000326,7]
[408742453,1774185046794,-166.753956,0.000326,7]
[408742455,1774185046803,-166.753956,0.000326,7]
[408742456,1774185046812,-166.753956,0.000326,7]
[408742457,1774185046823,-166.753956,0.000326,7]
[408742458,1774185046832,-150.0,0.00032607,120]
[408742459,1774185046842,-573.0,0.00032706,30]
[408742460,1774185046851,-933.78,0.00032709,120]
[408742461,1774185046861,-154.5017,0.000328,2]
[408742462,1774185046870,-347.56,0.00032877,2]
[408742463,1774185046879,-200.639954,0.00032877,7]
[408742464,1774185046890,-200.639954,0.00032877,7]
[408742465,1774185046899,-200.639954,0.00032877,7]
[408742466,1774185046910,-300.0,0.00032877,5]
[408742467,1774185046919,-500.0,0.00032877,2]
[408742468,1774185046928,-500.0,0.00032877,2]
[408742469,1774185046938,-500.0,0.00032877,2]
[408742470,1774185046947,-500.0,0.00032877,2]
[408742471,1774185046956,-500.0,0.00032877,2]
[408742472,1774185046966,-500.0,0.00032877,2]
[408742473,1774185046976,-387.93894982,0.00032877,2]
[408742474,1774185046985,-150.0,0.00032877,2]
[408742476,1774185046994,-150.0,0.00032877,2]
[408742478,1774185047004,-150.0,0.00032877,2]
[408742479,1774185047013,-150.0,0.00032877,2]
[408742480,1774185047023,-192.93939284,0.00032877,2]
[408742481,1774185047032,-1886.19,0.00032909,2]
[408742482,1774185047042,-407.7,0.00032934,2]
[408742484,1774185047051,-1091.87,0.00032937,2]
[408742486,1774185047061,-202.985,0.00032949,30]
[408742488,1774185047070,-933.78,0.00032983,120]
[408742489,1774185047080,-565.047298,0.00033,14]
[408742490,1774185047090,-2070.05,0.00033,30]
[408742491,1774185047100,-2000.0,0.00033,2]
[408742492,1774185047110,-979.16666667,0.00033,30]
[408742493,1774185047119,-312.0,0.00033,2]
[408742494,1774185047129,-150.0,0.00033043,2]
[408742495,1774185047138,-500.0,0.0003325,18]
[408742496,1774185047148,-933.78,0.00033257,120]
[408742497,1774185047157,-933.78,0.00033531,120]
[408742498,1774185047317,-150.0,0.00033684,7]
[408742499,1774185047328,-600.0,0.00033699,5]
[408742500,1774185047337,-5533.0,0.000337,3]
[408742501,1774185047346,-573.0,0.00033706,30]
[408742502,1774185047356,-150.0,0.00033719,120]
[408742503,1774185047365,-1093.0,0.00033738,2]
[408742504,1774185047375,-150.0,0.0003378,2]
[408742505,1774185047384,-2180.76,0.000338,2]
[408742506,1774185047394,-998.0,0.000338,2]
[408742507,1774185047403,-933.78,0.00033805,120]
[408742508,1774185047412,-2572.22,0.00033879,2]
[408742509,1774185047424,-1205.46,0.000339,30]
[408742510,1774185047434,-150.0,0.00033913,2]
[408742511,1774185047445,-1261.0,0.00033913,2]
[408742512,1774185047455,-1215.0,0.00033913,2]
[408742513,1774185047464,-901.36,0.00034,7]
[408742514,1774185047472,-924.0,0.00034003,2]
[408742515,1774185047482,-6008.0,0.00034003,2]
[408742516,1774185047492,-2466.0,0.00034003,2]
[408742517,1774185047500,-933.78,0.00034079,120]
[408742518,1774185047510,-664.55,0.00034139,2]
[408742519,1774185047519,-563.323191,0.00034145,7]
[408742520,1774185047528,-563.323191,0.00034145,7]
[408742521,1774185047537,-563.323191,0.00034145,7]
[408742522,1774185047546,-563.323191,0.00034145,7]
[408742523,1774185047556,-653.622616,0.00034145,7]
[408742524,1774185047564,-653.622616,0.00034145,7]
[408742525,1774185047573,-653.622616,0.00034145,7]
[408742526,1774185047582,-653.622616,0.00034145,7]
[408742527,1774185047592,-396.0,0.00034145,7]
[408742528,1774185047601,-396.0,0.00034145,7]
[408742529,1774185047610,-396.0,0.00034145,7]
[408742530,1774185047619,-396.0,0.00034145,7]
[408742531,1774185047628,-151.0,0.00034145,7]
[408742532,1774185047640,-1246.992687,0.00034145,7]
[408742533,1774185047650,-151.0,0.00034145,7]
[408742534,1774185047659,-1246.992687,0.00034145,7]
[408742535,1774185047668,-1246.992687,0.00034145,7]
[408742536,1774185047682,-1246.992687,0.00034145,7]
[408742537,1774185047698,-151.0,0.00034145,7]
[408742538,1774185047707,-151.0,0.00034145,7]
[408742539,1774185047716,-151.0,0.00034145,7]
[408742540,1774185047725,-151.0,0.00034145,7]
[408742541,1774185047735,-151.0,0.00034145,7]
[408742542,1774185047747,-151.0,0.00034145,7]
[408742543,1774185047757,-190.831039,0.00034145,7]
[408742544,1774185047767,-500.0,0.00034167,19]
[408742545,1774185047776,-558.79,0.00034212,120]
[408742546,1774185047787,-5533.0,0.000343,5]
[408742547,1774185047797,-256.72904002,0.00034315,60]
[408742548,1774185047806,-933.78,0.00034353,120]
[408742549,1774185047815,-150.0,0.00034386,120]
[408742550,1774185047826,-362.72905046,0.00034444,30]
[408742551,1774185047837,-2878.81,0.0003446,2]
[408742552,1774185047846,-58648.31,0.000345,7]
[408742553,1774185047856,-902.52655756,0.00034521,5]
[408742554,1774185047865,-1093.0,0.00034541,2]
[408742555,1774185047875,-1091.87,0.00034584,2]
[408742556,1774185047886,-726.35,0.0003459,60]
[408742557,1774185047895,-151.0,0.00034597,7]
[408742558,1774185047904,-151.0,0.00034597,7]
[408742559,1774185047913,-163.838437,0.00034597,7]
[408742560,1774185047921,-671.220097,0.00034597,7]
[408742561,1774185047931,-671.220097,0.00034597,7]
[408742562,1774185047940,-671.220097,0.00034597,7]
[408742563,1774185047950,-671.220097,0.00034597,7]
[408742564,1774185047959,-288.684885,0.00034597,7]
[408742565,1774185047969,-288.684885,0.00034597,7]
[408742566,1774185047978,-288.684885,0.00034597,7]
[408742567,1774185047987,-288.684885,0.00034597,7]
[408742568,1774185047997,-933.78,0.00034627,120]
[408742569,1774185048006,-150.0,0.00034696,2]
[408742570,1774185048016,-573.0,0.00034706,30]
[408742571,1774185048025,-933.78,0.00034901,120]
[408742572,1774185048035,-152.0,0.00034971,3]
[408742573,1774185048046,-160.0,0.00035,120]
[408742574,1774185048056,-200.0,0.00035,3]
[408742575,1774185048066,-500.0,0.00035083,20]
[408742576,1774185048075,-933.78,0.00035175,120]
[408742577,1774185048085,-1625.51,0.000352,30]
[408742578,1774185048094,-1837.12,0.000352,30]
[408742579,1774185048104,-176.09352672,0.000352,5]
[408742580,1774185048113,-150.0,0.00035275,120]
[408742581,1774185048123,-150.0,0.00035275,120]
[408742582,1774185048133,-150.0,0.00035275,120]
[408742583,1774185048143,-151.0,0.00035315,60]
[408742584,1774185048152,-1093.0,0.00035345,5]
[408742585,1774185048161,-150.0,0.000354,30]
[408742586,1774185048170,-619.22,0.00035413,2]
[408742587,1774185048179,-2476.89,0.00035413,2]
[408742588,1774185048189,-862.49,0.00035413,2]
[408742589,1774185048198,-620.9,0.00035439,2]
[408742590,1774185048207,-933.78,0.00035449,120]
[408742591,1774185048217,-150.0,0.00035521,7]
[408742592,1774185048226,-442.35727467,0.00035589,120]
[408742593,1774185048236,-2070.05,0.000356,30]
[408742594,1774185048245,-151.0,0.00035616,7]
[408742595,1774185048254,-151.0,0.00035616,7]
[408742596,1774185048263,-156.180321,0.00035616,7]
[408742597,1774185048272,-150.0,0.00035616,20]
[408742598,1774185048281,-1100.96851205,0.00035616,7]
[408742599,1774185048290,-1100.96851205,0.00035616,7]
[408742600,1774185048299,-1100.96851205,0.00035616,7]
[408742601,1774185048308,-1100.96851205,0.00035616,7]
[408742602,1774185048317,-1100.96851205,0.00035616,7]
[408742603,1774185048327,-1100.96851205,0.00035616,7]
[408742604,1774185048336,-1100.96851205,0.00035616,7]
[408742605,1774185048345,-1100.96851205,0.00035616,7]
[408742606,1774185048354,-1100.96851205,0.00035616,7]
[408742607,1774185048364,-1100.96851205,0.00035616,7]
[408742608,1774185048373,-1100.96851205,0.00035616,7]
[408742609,1774185048382,-1100.96851205,0.00035616,7]
[408742610,1774185048391,-1100.96851205,0.00035616,7]
[408742611,1774185048400,-1100.96851205,0.00035616,7]
[408742612,1774185048410,-1100.96851205,0.00035616,7]
[408742613,1774185048419,-1100.96851205,0.00035616,7]
[408742614,1774185048428,-260.0,0.00035616,10]
[408742615,1774185048437,-623.583206,0.00035616,7]
[408742616,1774185048446,-623.583206,0.00035616,7]
[408742617,1774185048455,-623.583206,0.00035616,7]
[408742618,1774185048464,-623.583206,0.00035616,7]
[408742619,1774185048473,-161.0,0.00035694,11]
[408742620,1774185048482,-573.0,0.00035706,30]
[408742621,1774185048492,-933.78,0.00035723,120]
[408742622,1774185048501,-208.6,0.000358,14]
[408742623,1774185048510,-602.85136,0.00035888,30]
[408742624,1774185048519,-4293.95604048,0.0003595,2]
[408742625,1774185048529,-153.37981675,0.00035974,98]
[408742626,1774185048538,-933.78,0.00035997,120]
[408742627,1774185048547,-155.265,0.00036,2]
[408742628,1774185048557,-160.0,0.00036,30]
[408742629,1774185048566,-500.0,0.00036,21]
[408742630,1774185048575,-150.147,0.00036025,2]
[408742631,1774185048584,-177.0338293,0.00036037,7]
[408742632,1774185048593,-876.7,0.00036056,10]
[408742633,1774185048602,-602.85136,0.00036088,30]
[408742634,1774185048611,-2664.27041134,0.00036122,120]
[408742635,1774185048620,-1254.88974739,0.00036122,120]
[408742636,1774185048630,-1586.15418757,0.00036122,120]
[408742637,1774185048641,-1093.0,0.00036148,5]
[408742638,1774185048651,-150.0,0.00036164,120]
[408742639,1774185048660,-219.14,0.00036179,10]
[408742640,1774185048669,-1091.87,0.0003623,2]
[408742641,1774185048679,-933.78,0.00036271,120]
[408742642,1774185048688,-602.85136,0.00036288,30]
[408742643,1774185048697,-2180.76,0.000363,2]
[408742644,1774185048707,-151.0,0.00036315,60]
[408742645,1774185048716,-675.24,0.00036378,10]
[408742646,1774185048725,-58648.31,0.000364,7]
[408742647,1774185048734,-150.0,0.0003643,2]
[408742648,1774185048743,-602.85136,0.00036488,30]
[408742649,1774185048756,-933.78,0.00036544,120]
[408742650,1774185048765,-1484.31656128,0.00036567,2]
[408742651,1774185048775,-362.72905046,0.00036667,30]
[408742652,1774185048784,-602.85136,0.00036688,30]
[408742653,1774185048794,-2000.0,0.000367,2]
[408742654,1774185048804,-573.0,0.00036706,30]
[408742655,1774185048815,-933.78,0.00036818,120]
[408742656,1774185048824,-150.0,0.00036831,120]
[408742657,1774185048832,-602.85136,0.00036888,30]
[408742658,1774185048849,-1261.0,0.00036913,2]
[408742659,1774185048860,-1215.0,0.00036913,2]
[408742660,1774185048869,-500.0,0.00036917,22]
[408742661,1774185048878,-1093.0,0.00036952,5]
[408742662,1774185048890,-924.0,0.00037003,2]
[408742663,1774185048899,-6008.0,0.00037003,2]
[408742664,1774185048908,-2466.0,0.00037003,2]
[408742665,1774185048917,-602.85136,0.00037088,30]
[408742666,1774185048927,-933.78,0.00037092,120]
[408742667,1774185048936,-150.0,0.00037168,2]
[408742668,1774185048944,-602.85136,0.00037288,30]
[408742669,1774185048954,-151.0,0.00037315,60]
[408742670,1774185048963,-150.0,0.00037358,7]
[408742671,1774185048972,-933.78,0.00037366,120]
[408742672,1774185048983,-1625.51,0.000374,30]
[408742673,1774185049003,-1837.12,0.000374,30]
[408742674,1774185049012,-152.0,0.00037419,4]
[408742675,1774185049021,-602.85136,0.00037488,30]
[408742676,1774185049031,-664.55,0.00037564,2]
[408742677,1774185049045,-933.78,0.0003764,120]
[408742678,1774185049055,-150.0,0.00037663,2]